fUST/lending_fUST_20250708
["ID","MTS","AMOUNT","RATE_DAILY","PERIOD"]
[370382120,1751987481063,-693.69,0.00024109,2]
[370382121,1751987481077,-889.03,0.00024109,2]
[370382122,1751987481087,-911.11,0.00024109,2]
[370382123,1751987481097,-849.52,0.00024109,2]
[370382124,1751987481107,-1608.55,0.00024109,2]
[370382125,1751987481117,-512.35,0.00024109,2]
[370382126,1751987481127,-1680.8,0.00024109,2]
[370382127,1751987481137,-3263.91,0.00024109,2]
[370382128,1751987481147,-825.63,0.00024109,2]
[370382129,1751987481157,-1917.38,0.00024109,2]
[370382130,1751987481166,-460.0,0.00024109,2]
[370382131,1751987481177,-207.72812,0.00024109,7]
[370382132,1751987481188,-207.72812,0.00024109,7]
[370382133,1751987481197,-1349.37,0.00024109,2]
[370382134,1751987481207,-7169.81,0.00024109,2]
[370382135,1751987481217,-460.0,0.00024109,2]
[370382136,1751987481227,-764.25,0.00024109,2]
[370382137,1751987481236,-3212.24,0.00024109,2]
[370382138,1751987481246,-975.12,0.00024109,2]
[370382139,1751987481257,-3732.02,0.00024109,2]
[370382140,1751987481266,-517.2,0.00024109,2]
[370382141,1751987481276,-1124.04,0.00024109,2]
[370382142,1751987481286,-750.0,0.0002411,2]
[370382143,1751987481296,-151.0,0.00024123,7]
[370382144,1751987481306,-2065.56,0.00024123,3]
[370382145,1751987481316,-398.54,0.00024193,2]
[370382146,1751987481326,-10000.0,0.000242,4]
[370382147,1751987481335,-2065.56,0.00024223,3]
[370382148,1751987481346,-3853.49006069,0.00024245,10]
[370382149,1751987481356,-411.498511,0.00024265,7]
[370382150,1751987481365,-411.498511,0.00024265,7]
[370382151,1751987481375,-217.819591,0.00024298,7]
[370382152,1751987481386,-217.819591,0.00024298,7]
[370382153,1751987481396,-156.409,0.00024298,7]
[370382154,1751987481406,-156.409,0.00024298,7]
[370382155,1751987481416,-151.0,0.00024298,7]
[370382156,1751987481427,-292.692506,0.00024298,7]
[370382157,1751987481436,-292.692506,0.00024298,7]
[370382158,1751987481446,-428.6046964,0.00024301,2]
[370382159,1751987481455,-1319.22748375,0.0002432,2]
[370382160,1751987481464,-2065.56,0.00024323,3]
[370382161,1751987481474,-151.0,0.00024383,7]
[370382162,1751987481483,-204.102071,0.00024383,7]
[370382163,1751987481493,-204.102071,0.00024383,7]
[370382164,1751987481503,-151.0,0.00024383,7]
[370382165,1751987481512,-151.0,0.00024383,7]
[370382166,1751987481521,-151.0,0.00024383,7]
[370382167,1751987481531,-520.37,0.00024383,2]
[370382168,1751987481540,-644.05,0.00024383,2]
[370382169,1751987481550,-460.0,0.00024383,2]
[370382170,1751987481560,-590.3,0.00024383,2]
[370382171,1751987481570,-460.0,0.00024383,2]
[370382172,1751987481579,-571.79,0.00024383,2]
[370382173,1751987481589,-655.17,0.00024383,2]
[370382174,1751987481599,-460.0,0.00024383,2]
[370382175,1751987481608,-1068.61,0.00024383,2]
[370382176,1751987481619,-990.47,0.00024383,2]
[370382177,1751987481628,-529.08,0.00024383,2]
[370382178,1751987481637,-1094.43,0.00024383,2]
[370382179,1751987481647,-610.0,0.00024383,2]
[370382180,1751987481657,-702.73,0.00024383,2]
[370382181,1751987481667,-460.0,0.00024383,2]
[370382182,1751987481677,-485.34758743,0.00024383,2]
[370382183,1751987481687,-2535.92,0.00024383,2]
[370382184,1751987481699,-1117.62,0.00024383,2]
[370382185,1751987481708,-508.54117653,0.00024383,2]
[370382186,1751987481718,-460.0,0.00024383,2]
[370382187,1751987481730,-638.54,0.00024383,2]
[370382188,1751987481739,-489.06,0.00024383,2]
[370382189,1751987481750,-906.56,0.00024383,2]
[370382190,1751987481759,-6605.47,0.00024383,2]
[370382191,1751987481769,-3531.13,0.00024383,2]
[370382192,1751987481779,-769.53,0.00024383,2]
[370382193,1751987481790,-4999.22,0.00024383,2]
[370382194,1751987481801,-1438.66,0.00024383,2]
[370382195,1751987481812,-1029.02,0.00024383,2]
[370382196,1751987481822,-551.13,0.00024383,2]
[370382197,1751987481832,-3199.43,0.00024383,2]
[370382198,1751987481841,-1136.93,0.00024383,2]
[370382199,1751987481851,-1227.68,0.00024383,2]
[370382200,1751987481860,-802.39,0.00024383,2]
[370382201,1751987481870,-2315.09,0.00024383,2]
[370382202,1751987481879,-779.96,0.00024383,2]
[370382203,1751987481890,-1247.08,0.00024383,2]
[370382204,1751987481900,-768.26,0.00024383,2]
[370382205,1751987481910,-814.03,0.00024383,2]
[370382206,1751987481920,-1458.11,0.00024383,2]
[370382207,1751987481929,-1873.14,0.00024383,2]
[370382208,1751987481939,-460.0,0.00024383,2]
[370382209,1751987481949,-503.68,0.00024383,2]
[370382210,1751987481958,-510.97,0.00024383,2]
[370382211,1751987481968,-1198.65,0.00024383,2]
[370382212,1751987481979,-485.36,0.00024383,2]
[370382213,1751987481988,-3642.47,0.00024383,2]
[370382214,1751987481998,-3488.24,0.00024383,2]
[370382215,1751987482008,-881.6,0.00024383,2]
[370382216,1751987482018,-1190.04,0.00024383,2]
[370382217,1751987482028,-5308.08,0.00024383,2]
[370382218,1751987482037,-858.29,0.00024383,2]
[370382219,1751987482046,-693.69,0.00024383,2]
[370382220,1751987482056,-889.03,0.00024383,2]
[370382221,1751987482065,-911.11,0.00024383,2]
[370382222,1751987482075,-849.52,0.00024383,2]
[370382223,1751987482085,-1608.55,0.00024383,2]
[370382224,1751987482095,-512.35,0.00024383,2]
[370382225,1751987482104,-3263.91,0.00024383,2]
[370382226,1751987482114,-1680.8,0.00024383,2]
[370382227,1751987482124,-825.63,0.00024383,2]
[370382228,1751987482134,-1917.38,0.00024383,2]
[370382229,1751987482144,-460.0,0.00024383,2]
[370382230,1751987482153,-1349.37,0.00024383,2]
[370382231,1751987482162,-460.0,0.00024383,2]
[370382232,1751987482172,-7169.81,0.00024383,2]
[370382233,1751987482184,-764.25,0.00024383,2]
[370382234,1751987482194,-3212.24,0.00024383,2]
[370382235,1751987482203,-975.12,0.00024383,2]
[370382236,1751987482213,-3732.02,0.00024383,2]
[370382237,1751987482226,-517.2,0.00024383,2]
[370382238,1751987482235,-1124.04,0.00024383,2]
[370382239,1751987482245,-3967.07919496,0.0002439,2]
[370382240,1751987482255,-2000.0,0.000244,2]
[370382241,1751987482265,-2000.0,0.000244,2]
[370382242,1751987482274,-2065.56,0.00024423,5]
[370382243,1751987482284,-332.7095504,0.00024438,2]
[370382244,1751987482294,-576.1435385,0.00024438,2]
[370382245,1751987482304,-823.0,0.00024445,2]
[370382246,1751987482313,-3853.49006069,0.00024452,11]
[370382247,1751987482322,-200.0,0.000245,2]
[370382248,1751987482334,-8000.0,0.000245,4]
[370382249,1751987482347,-162.898236,0.00024523,2]
[370382250,1751987482358,-2065.56,0.00024523,3]
[370382251,1751987482369,-4774.09,0.000246,7]
[370382252,1751987482378,-2065.56,0.00024623,6]
[370382253,1751987482388,-501.10567785,0.0002465,2]
[370382254,1751987482398,-98748.53195837,0.0002465,2]
[370382255,1751987487547,1756.6,0.00027397,120]
[370382256,1751987662667,10000.0,0.00018025,2]
[370382257,1751987705526,18241.2552912,0.00017925,2]
[370382259,1751987814618,1000.0,0.00027,120]
[370382260,1751987862782,191.37380553,0.00027397,120]
[370382262,1751987961513,298.215472,0.00017771,2]
[370382265,1751988147809,229.664924,0.00013699,2]
[370382266,1751988223884,-300.0,0.00018499,2]
[370382267,1751988223924,-1400.0,0.000185,2]
[370382268,1751988224043,-2000.0,0.000185,2]
[370382269,1751988224227,-2000.0,0.000185,2]
[370382270,1751988224454,-2000.0,0.000185,2]
[370382271,1751988224768,-2000.0,0.000185,2]
[370382272,1751988224933,-2000.0,0.000185,2]
[370382273,1751988225080,-2000.0,0.000185,2]
[370382274,1751988225286,-2000.0,0.000185,2]
[370382275,1751988225462,-2000.0,0.000185,2]
[370382276,1751988225646,-2000.0,0.000185,2]
[370382277,1751988225844,-2000.0,0.000185,2]
[370382278,1751988226024,-2000.0,0.000185,2]
[370382279,1751988226327,-2000.0,0.000185,2]
[370382280,1751988226531,-2000.0,0.000185,2]
[370382281,1751988226786,-2000.0,0.000185,2]
[370382282,1751988226983,-2000.0,0.000185,2]
[370382283,1751988227205,-2000.0,0.000185,2]
[370382284,1751988227393,-2000.0,0.000185,2]
[370382285,1751988227584,-2000.0,0.000185,2]
[370382286,1751988227810,-2000.0,0.000185,2]
[370382287,1751988228040,-2000.0,0.000185,2]
[370382288,1751988228254,-2000.0,0.000185,2]
[370382289,1751988228451,-2000.0,0.000185,2]
[370382290,1751988228636,-2000.0,0.000185,2]
[370382291,1751988228841,-372.35729761,0.000185,2]
[370382293,1751988415686,1255.28540478,0.00017,2]
[370382294,1751988415712,2000.0,0.00017,2]
[370382295,1751988415737,2000.0,0.00017,2]
[370382296,1751988415762,2000.0,0.00017,2]
[370382297,1751988415787,2000.0,0.00017,2]
[370382298,1751988415811,2000.0,0.00017,2]
[370382299,1751988415836,2000.0,0.00017,2]
[370382300,1751988415859,2000.0,0.00017,2]
[370382301,1751988415882,2000.0,0.00017,2]
[370382302,1751988415906,2000.0,0.00017,2]
[370382303,1751988415929,2000.0,0.00017,2]
[370382304,1751988415953,2000.0,0.00017,2]
[370382305,1751988415977,2000.0,0.00017,2]
[370382306,1751988416001,2000.0,0.00017,2]
[370382307,1751988416024,2000.0,0.00017,2]
[370382308,1751988416047,2000.0,0.00017,2]
[370382309,1751988416071,2000.0,0.00017,2]
[370382310,1751988416094,2000.0,0.00017,2]
[370382311,1751988416118,2000.0,0.00017,2]
[370382312,1751988416141,2000.0,0.00017,2]
[370382313,1751988416165,2000.0,0.00017,2]
[370382314,1751988416189,2000.0,0.00017,2]
[370382315,1751988416213,2000.0,0.00017,2]
[370382316,1751988416237,2000.0,0.00017,2]
[370382317,1751988416262,2000.0,0.00017,2]
[370382318,1751988416285,2000.0,0.00017,2]
[370382319,1751988416310,77321.98274522,0.00017,2]
[370382324,1751988582449,1392.0,0.00027397,120]
[370382332,1751988610377,398.0,0.0001815,2]
[370382334,1751988624043,192.27197003,0.00018151,2]
[370382380,1751988638566,-5000.0,0.00018481,2]
[370382382,1751988638576,-2949.00027699,0.000185,2]
[370382384,1751988638586,-748.96990301,0.00018668,2]
[370382385,1751988638596,-1200.0,0.00018672,2]
[370382386,1751988638606,-8970.72187293,0.00018673,2]
[370382388,1751988638616,-300.0,0.00018699,2]
[370382389,1751988638625,-1766.52828875,0.000187,2]
[370382390,1751988638635,-566.63,0.00018763,3]
[370382391,1751988638644,-188.88,0.00018763,3]
[370382392,1751988638654,-566.64,0.00018763,3]
[370382393,1751988638663,-500.0,0.00018766,2]
[370382395,1751988638673,-500.0,0.00018766,2]
[370382397,1751988638683,-500.0,0.00018766,2]
[370382399,1751988638693,-500.0,0.00018766,2]
[370382401,1751988638702,-500.0,0.00018766,2]
[370382403,1751988638712,-175.86255999,0.00018766,2]
[370382405,1751988638722,-278.11439459,0.00018766,2]
[370382407,1751988638731,-500.0,0.00018766,2]
[370382408,1751988638740,-500.0,0.00018766,2]
[370382410,1751988638750,-500.0,0.00018766,2]
[370382412,1751988638759,-500.0,0.00018766,2]
[370382414,1751988638769,-500.0,0.00018766,2]
[370382416,1751988638779,-500.0,0.00018766,2]
[370382418,1751988638788,-500.0,0.00018766,2]
[370382420,1751988638798,-500.0,0.00018766,2]
[370382422,1751988638807,-500.0,0.00018766,2]
[370382424,1751988638816,-500.0,0.00018766,2]
[370382426,1751988638826,-500.0,0.00018766,2]
[370382428,1751988638835,-500.0,0.00018766,2]
[370382430,1751988638845,-500.0,0.00018766,2]
[370382432,1751988638854,-500.0,0.00018766,2]
[370382434,1751988638863,-500.0,0.00018766,2]
[370382436,1751988638873,-500.0,0.00018766,2]
[370382438,1751988638882,-500.0,0.00018766,2]
[370382440,1751988638892,-500.0,0.00018766,2]
[370382442,1751988638902,-500.0,0.00018766,2]
[370382444,1751988638912,-500.0,0.00018766,2]
[370382446,1751988638921,-500.0,0.00018766,2]
[370382448,1751988638931,-500.0,0.00018766,2]
[370382450,1751988638941,-500.0,0.00018766,2]
[370382452,1751988638950,-500.0,0.00018766,2]
[370382454,1751988638960,-500.0,0.00018766,2]
[370382455,1751988638969,-500.0,0.00018766,2]
[370382456,1751988638979,-500.0,0.00018766,2]
[370382457,1751988638988,-500.0,0.00018766,2]
[370382458,1751988638998,-500.0,0.00018766,2]
[370382459,1751988639008,-500.0,0.00018766,2]
[370382460,1751988639018,-500.0,0.00018766,2]
[370382461,1751988639027,-500.0,0.00018766,2]
[370382462,1751988639036,-500.0,0.00018766,2]
[370382463,1751988639046,-500.0,0.00018766,2]
[370382464,1751988639055,-500.0,0.00018766,2]
[370382465,1751988639065,-500.0,0.00018766,2]
[370382466,1751988639074,-500.0,0.00018766,2]
[370382467,1751988639084,-500.0,0.00018766,2]
[370382468,1751988639094,-500.0,0.00018766,2]
[370382469,1751988639103,-445.59637323,0.00018766,2]
[370382470,1751988639112,-500.0,0.00018766,2]
[370382471,1751988639122,-500.0,0.00018766,2]
[370382472,1751988639131,-500.0,0.00018766,2]
[370382473,1751988639141,-500.0,0.00018766,2]
[370382474,1751988639150,-500.0,0.00018766,2]
[370382475,1751988639160,-500.0,0.00018766,2]
[370382476,1751988639169,-500.0,0.00018766,2]
[370382477,1751988639179,-500.0,0.00018766,2]
[370382478,1751988639190,-500.0,0.00018766,2]
[370382479,1751988639199,-500.0,0.00018766,2]
[370382480,1751988639209,-500.0,0.00018766,2]
[370382481,1751988639218,-500.0,0.00018766,2]
[370382482,1751988639228,-500.0,0.00018766,2]
[370382483,1751988639238,-500.0,0.00018766,2]
[370382484,1751988639247,-500.0,0.00018766,2]
[370382485,1751988639257,-50000.0,0.00018767,2]
[370382486,1751988639267,-500.0,0.00018772,2]
[370382487,1751988639277,-620.0617319,0.00018772,2]
[370382488,1751988639286,-1000.0,0.00018772,2]
[370382489,1751988639295,-1000.0,0.00018772,2]
[370382490,1751988639305,-1000.0,0.00018772,2]
[370382491,1751988639314,-1000.0,0.00018772,2]
[370382492,1751988639323,-1000.0,0.00018772,2]
[370382493,1751988639334,-1000.0,0.00018772,2]
[370382494,1751988639344,-1000.0,0.00018772,2]
[370382495,1751988639354,-1000.0,0.00018772,2]
[370382496,1751988639363,-1000.0,0.00018772,2]
[370382497,1751988639372,-1092.21830037,0.00018772,2]
[370382498,1751988639384,-370000.0,0.00018773,2]
[370382499,1751988639397,-1766.52828871,0.00018795,2]
[370382500,1751988639407,-2000.0,0.000188,2]
[370382501,1751988639416,-2000.0,0.000188,3]
[370382502,1751988639429,-2000.0,0.000188,4]
[370382503,1751988639445,-151.0,0.000188,2]
[370382504,1751988639454,-1766.52828871,0.00018889,2]
[370382505,1751988639463,-151.0,0.000189,2]
[370382506,1751988639472,-1766.52828871,0.00018984,2]
[370382507,1751988639482,-258.39745915,0.00018984,2]
[370382508,1751988639492,-151.0,0.00019,2]
[370382509,1751988639502,-6000.12112763,0.00019,2]
[370382510,1751988639511,-1766.52828871,0.00019078,2]
[370382511,1751988639521,-151.0,0.000191,2]
[370382512,1751988639534,-6000.12112762,0.00019141,2]
[370382513,1751988639543,-500.0,0.00019173,2]
[370382514,1751988639553,-491.04253568,0.00019173,2]
[370382515,1751988639562,-500.0,0.00019173,2]
[370382516,1751988639572,-500.0,0.00019173,2]
[370382517,1751988639581,-500.0,0.00019173,2]
[370382518,1751988639591,-500.47638739,0.00019173,2]
[370382519,1751988639600,-500.0,0.00019173,2]
[370382520,1751988639609,-500.0,0.00019173,2]
[370382521,1751988639619,-500.0,0.00019173,2]
[370382522,1751988639628,-454.40572668,0.00019173,2]
[370382523,1751988639638,-500.0,0.00019173,2]
[370382524,1751988639647,-257.31718571,0.00019173,2]
[370382525,1751988639656,-500.0,0.00019173,2]
[370382526,1751988639665,-314.5323604,0.00019173,2]
[370382527,1751988639675,-500.0,0.00019173,2]
[370382528,1751988639684,-500.0,0.00019173,2]
[370382529,1751988639693,-500.0,0.00019173,2]
[370382530,1751988639703,-467.70119871,0.00019173,2]
[370382531,1751988639712,-503.73119541,0.00019173,2]
[370382532,1751988639721,-450.44738759,0.00019178,2]
[370382533,1751988639731,-460.0,0.00019178,2]
[370382534,1751988639740,-460.0,0.00019178,2]
[370382535,1751988639750,-460.0,0.00019178,2]
[370382536,1751988639759,-462.91931191,0.00019178,2]
[370382537,1751988639768,-460.0,0.00019178,2]
[370382538,1751988639777,-460.0,0.00019178,2]
[370382539,1751988639787,-460.0,0.00019178,2]
[370382540,1751988639796,-460.0,0.00019178,2]
[370382541,1751988639806,-460.0,0.00019178,2]
[370382542,1751988639815,-461.27899826,0.00019178,2]
[370382543,1751988639824,-463.6476598,0.00019178,2]
[370382544,1751988639834,-460.0,0.00019178,2]
[370382545,1751988639843,-460.0,0.00019178,2]
[370382546,1751988639852,-243.5538511,0.00019178,2]
[370382547,1751988639862,-460.0,0.00019178,2]
[370382548,1751988639875,-460.0,0.00019178,2]
[370382549,1751988639887,-460.98212511,0.00019178,2]
[370382550,1751988639900,-322.50935835,0.00019178,2]
[370382551,1751988639912,-460.0,0.00019178,2]
[370382552,1751988639925,-1000.0,0.00019178,2]
[370382553,1751988639937,-550.68248045,0.00019178,2]
[370382554,1751988639947,-460.0,0.00019178,2]
[370382555,1751988639958,-460.0,0.00019178,2]
[370382556,1751988639969,-536.12,0.00019178,2]
[370382557,1751988639981,-460.0,0.00019178,2]
[370382558,1751988639993,-460.0,0.00019178,2]
[370382559,1751988640004,-460.0,0.00019178,2]
[370382560,1751988640015,-460.0,0.00019178,2]
[370382561,1751988640027,-433.08403681,0.00019178,2]
[370382562,1751988640038,-460.0,0.00019178,2]
[370382563,1751988640051,-460.0,0.00019178,2]
[370382564,1751988640063,-240.3396799,0.00019178,2]
[370382565,1751988640074,-460.0,0.00019178,2]
[370382566,1751988640086,-460.0,0.00019178,2]
[370382567,1751988640099,-460.0,0.00019178,2]
[370382568,1751988640111,-460.0,0.00019178,2]
[370382569,1751988640123,-460.0,0.00019178,2]
[370382570,1751988640135,-399.67921954,0.00019178,2]
[370382571,1751988640146,-460.0,0.00019178,2]
[370382572,1751988640158,-460.0,0.00019178,2]
[370382573,1751988640169,-460.0,0.00019178,2]
[370382574,1751988640181,-253.86070907,0.00019178,2]
[370382575,1751988640192,-1027.44,0.00019178,2]
[370382576,1751988640203,-460.0,0.00019178,2]
[370382577,1751988640215,-460.0,0.00019178,2]
[370382578,1751988640227,-460.0,0.00019178,2]
[370382579,1751988640239,-460.0,0.00019178,2]
[370382580,1751988640251,-460.0,0.00019178,2]
[370382581,1751988640262,-460.0,0.00019178,2]
[370382582,1751988640273,-460.0,0.00019178,2]
[370382583,1751988640284,-408.41021163,0.00019178,2]
[370382584,1751988640295,-460.0,0.00019178,2]
[370382585,1751988640305,-460.0,0.00019178,2]
[370382586,1751988640316,-460.0,0.00019178,2]
[370382587,1751988640327,-460.0,0.00019178,2]
[370382588,1751988640337,-460.0,0.00019178,2]
[370382589,1751988640349,-460.0,0.00019178,2]
[370382590,1751988640360,-460.0,0.00019178,2]
[370382591,1751988640371,-460.0,0.00019178,2]
[370382592,1751988640383,-460.0,0.00019178,2]
[370382593,1751988640395,-460.0,0.00019178,2]
[370382594,1751988640407,-405.22657715,0.00019178,2]
[370382595,1751988640419,-460.0,0.00019178,2]
[370382596,1751988640431,-460.0,0.00019178,2]
[370382597,1751988640447,-460.0,0.00019178,2]
[370382598,1751988640459,-460.0,0.00019178,2]
[370382599,1751988640471,-863.55,0.00019178,2]
[370382600,1751988640484,-460.0,0.00019178,2]
[370382601,1751988640495,-460.0,0.00019178,2]
[370382602,1751988640505,-459.12041124,0.00019178,2]
[370382603,1751988640516,-592.45,0.00019178,2]
[370382604,1751988640526,-460.0,0.00019178,2]
[370382605,1751988640540,-460.0,0.00019178,2]
[370382606,1751988640550,-512.5,0.00019178,2]
[370382607,1751988640561,-460.0,0.00019178,2]
[370382608,1751988640574,-941.19,0.00019178,2]
[370382609,1751988640586,-311.37302137,0.00019178,2]
[370382610,1751988640598,-460.0,0.00019178,2]
[370382611,1751988640610,-460.0,0.00019178,2]
[370382612,1751988640620,-460.0,0.00019178,2]
[370382613,1751988640630,-460.0,0.00019178,2]
[370382614,1751988640641,-460.0,0.00019178,2]
[370382615,1751988640651,-475.39008063,0.00019178,2]
[370382616,1751988640662,-460.0,0.00019178,2]
[370382617,1751988640672,-455.62823303,0.00019178,2]
[370382618,1751988640685,-460.0,0.00019178,2]
[370382619,1751988640697,-460.0,0.00019178,2]
[370382620,1751988640708,-460.0,0.00019178,2]
[370382621,1751988640718,-460.0,0.00019178,2]
[370382622,1751988640728,-460.0,0.00019178,2]
[370382623,1751988640739,-460.0,0.00019178,2]
[370382624,1751988640749,-460.0,0.00019178,2]
[370382625,1751988640760,-460.0,0.00019178,2]
[370382626,1751988640770,-460.0,0.00019178,2]
[370382627,1751988640781,-460.0,0.00019178,2]
[370382628,1751988640792,-474.92283891,0.00019178,2]
[370382629,1751988640803,-898.19,0.00019178,2]
[370382630,1751988640815,-460.0,0.00019178,2]
[370382631,1751988640825,-460.0,0.00019178,2]
[370382632,1751988640837,-460.0,0.00019178,2]
[370382633,1751988640847,-460.0,0.00019178,2]
[370382634,1751988640858,-468.58,0.00019178,2]
[370382635,1751988640869,-460.0,0.00019178,2]
[370382636,1751988640880,-460.0,0.00019178,2]
[370382637,1751988640892,-460.0,0.00019178,2]
[370382638,1751988640903,-811.62,0.00019178,2]
[370382639,1751988640913,-370.34897506,0.00019178,2]
[370382640,1751988640924,-862.49,0.00019178,2]
[370382641,1751988640934,-460.0,0.00019178,2]
[370382642,1751988640946,-460.0,0.00019178,2]
[370382643,1751988640957,-460.0,0.00019178,2]
[370382644,1751988640968,-460.0,0.00019178,2]
[370382645,1751988640979,-460.0,0.00019178,2]
[370382646,1751988640989,-510.43,0.00019178,2]
[370382647,1751988640999,-460.0,0.00019178,2]
[370382648,1751988641010,-460.0,0.00019178,2]
[370382649,1751988641021,-460.0,0.00019178,2]
[370382650,1751988641031,-460.0,0.00019178,2]
[370382651,1751988641042,-197.46680754,0.00019178,2]
[370382652,1751988641053,-1555.07,0.00019178,2]
[370382653,1751988641064,-460.0,0.00019178,2]
[370382654,1751988641074,-460.0,0.00019178,2]
[370382655,1751988641085,-460.0,0.00019178,2]
[370382656,1751988641096,-460.0,0.00019178,2]
[370382657,1751988641107,-460.0,0.00019178,2]
[370382658,1751988641117,-460.0,0.00019178,2]
[370382659,1751988641128,-855.52,0.00019178,2]
[370382660,1751988641138,-460.0,0.00019178,2]
[370382661,1751988641149,-460.0,0.00019178,2]
[370382662,1751988641159,-460.0,0.00019178,2]
[370382663,1751988641170,-460.0,0.00019178,2]
[370382664,1751988641181,-545.34,0.00019178,2]
[370382665,1751988641194,-502.49764899,0.00019178,2]
[370382666,1751988641204,-460.0,0.00019178,2]
[370382667,1751988641215,-460.0,0.00019178,2]
[370382668,1751988641226,-460.0,0.00019178,2]
[370382669,1751988641237,-460.0,0.00019178,2]
[370382670,1751988641247,-460.0,0.00019178,2]
[370382671,1751988641258,-460.0,0.00019178,2]
[370382672,1751988641269,-633.51,0.00019178,2]
[370382673,1751988641279,-460.0,0.00019178,2]
[370382674,1751988641290,-460.0,0.00019178,2]
[370382675,1751988641301,-460.0,0.00019178,2]
[370382676,1751988641313,-460.0,0.00019178,2]
[370382677,1751988641323,-460.0,0.00019178,2]
[370382678,1751988641334,-460.0,0.00019178,2]
[370382679,1751988641345,-460.0,0.00019178,2]
[370382680,1751988641356,-425.15349524,0.00019178,2]
[370382681,1751988641367,-460.0,0.00019178,2]
[370382682,1751988641378,-460.0,0.00019178,2]
[370382683,1751988641390,-1397.65,0.00019178,2]
[370382684,1751988641401,-460.0,0.00019178,2]
[370382685,1751988641412,-460.0,0.00019178,2]
[370382686,1751988641423,-460.0,0.00019178,2]
[370382687,1751988641434,-460.0,0.00019178,2]
[370382688,1751988641446,-460.0,0.00019178,2]
[370382689,1751988641457,-460.0,0.00019178,2]
[370382690,1751988641468,-460.0,0.00019178,2]
[370382691,1751988641479,-460.0,0.00019178,2]
[370382692,1751988641490,-1921.6,0.00019178,2]
[370382693,1751988641501,-460.0,0.00019178,2]
[370382694,1751988641512,-1435.95,0.00019178,2]
[370382695,1751988641523,-460.0,0.00019178,2]
[370382696,1751988641536,-460.0,0.00019178,2]
[370382697,1751988641546,-460.0,0.00019178,2]
[370382698,1751988641557,-460.0,0.00019178,2]
[370382699,1751988641568,-460.0,0.00019178,2]
[370382700,1751988641579,-461.20224027,0.00019178,2]
[370382701,1751988641590,-460.0,0.00019178,2]
[370382702,1751988641601,-460.0,0.00019178,2]
[370382703,1751988641612,-460.0,0.00019178,2]
[370382704,1751988641622,-460.0,0.00019178,2]
[370382705,1751988641633,-460.0,0.00019178,2]
[370382706,1751988641644,-251.86662136,0.00019178,2]
[370382707,1751988641656,-460.0,0.00019178,2]
[370382708,1751988641667,-460.0,0.00019178,2]
[370382709,1751988641678,-1026.07,0.00019178,2]
[370382710,1751988641689,-460.0,0.00019178,2]
[370382711,1751988641700,-602.93456521,0.00019178,2]
[370382712,1751988641711,-460.0,0.00019178,2]
[370382713,1751988641722,-460.0,0.00019178,2]
[370382714,1751988641732,-460.0,0.00019178,2]